fUSD/lending_fUSD_20260516
["ID","MTS","AMOUNT","RATE_DAILY","PERIOD"]
[422434992,1778946641000,-235.0,0.00024,2]
[422434990,1778946641000,-186.23,0.00023914,2]
[422434993,1778946641000,-151.0,0.00024,2]
[422434994,1778946641000,-515.0,0.00024,2]
[422434998,1778946641000,-1250.0,0.00024,2]
[422434999,1778946641000,-394.0,0.00024,2]
[422434997,1778946641000,-309.0,0.00024,2]
[422434945,1778946641000,-150.0,0.00023288,2]
[422434986,1778946641000,-250.0,0.00023756,2]
[422434973,1778946641000,-2000.0,0.00023562,2]
[422434988,1778946641000,-2000.0,0.00023805,2]
[422434972,1778946641000,-2000.0,0.00023562,2]
[422434974,1778946641000,-2000.0,0.00023562,2]
[422434944,1778946641000,-1094.0,0.00023213,2]
[422434949,1778946641000,-2000.0,0.00023396,2]
[422434950,1778946641000,-2000.0,0.00023396,2]
[422434951,1778946641000,-2000.0,0.00023396,2]
[422434957,1778946641000,-299.59,0.00023454,2]
[422434960,1778946641000,-2000.0,0.00023562,2]
[422434958,1778946641000,-2000.0,0.00023562,2]
[422434959,1778946641000,-2000.0,0.00023562,2]
[422434953,1778946641000,-2000.0,0.00023396,2]
[422434954,1778946641000,-2000.0,0.00023396,2]
[422434952,1778946641000,-2000.0,0.00023396,2]
[422434956,1778946641000,-171.99539503,0.00023436,3]
[422434971,1778946641000,-2000.0,0.00023562,2]
[422434955,1778946641000,-2000.0,0.00023396,2]
[422434968,1778946641000,-2000.0,0.00023562,2]
[422434970,1778946641000,-2000.0,0.00023562,2]
[422434967,1778946641000,-2000.0,0.00023562,2]
[422434966,1778946641000,-2000.0,0.00023562,2]
[422434969,1778946641000,-2000.0,0.00023562,2]
[422434964,1778946641000,-2000.0,0.00023562,2]
[422434962,1778946641000,-2000.0,0.00023562,2]
[422434963,1778946641000,-2000.0,0.00023562,2]
[422434961,1778946641000,-2000.0,0.00023562,2]
[422434965,1778946641000,-2000.0,0.00023562,2]
[422435042,1778946642000,-721.12765535,0.00025086,2]
[422435037,1778946642000,-179.7,0.00025,2]
[422435039,1778946642000,-5530.0,0.00025,3]
[422435038,1778946642000,-577.27724586,0.00025,2]
[422435035,1778946642000,-181.62060025,0.00025,2]
[422435030,1778946642000,-295.77307124,0.00025,2]
[422435033,1778946642000,-398.39833639,0.00025,2]
[422435034,1778946642000,-330.24741556,0.00025,2]
[422435029,1778946642000,-884.0,0.00025,2]
[422435026,1778946642000,-235.47514207,0.00025,2]
[422435040,1778946642000,-578.20924308,0.00025086,2]
[422435036,1778946642000,-179.7,0.00025,2]
[422435041,1778946642000,-200.0,0.00025086,2]
[422435054,1778946642000,-152.0,0.00025086,2]
[422435044,1778946642000,-174.61919141,0.00025086,2]
[422435046,1778946642000,-152.0,0.00025086,2]
[422435047,1778946642000,-152.0,0.00025086,2]
[422435045,1778946642000,-152.0,0.00025086,2]
[422435050,1778946642000,-151.0,0.00025086,2]
[422435051,1778946642000,-152.0,0.00025086,2]
[422435049,1778946642000,-152.0,0.00025086,2]
[422435052,1778946642000,-152.0,0.00025086,2]
[422435053,1778946642000,-152.0,0.00025086,2]
[422435048,1778946642000,-152.0,0.00025086,2]
[422435055,1778946642000,-152.0,0.00025086,2]
[422435031,1778946642000,-309.89157137,0.00025,2]
[422435043,1778946642000,-347.15258561,0.00025086,2]
[422435027,1778946642000,-169.0,0.00025,2]
[422435004,1778946642000,-2000.0,0.0002409,2]
[422435024,1778946642000,-419.39319205,0.00024899,2]
[422435002,1778946642000,-576.0,0.00024,2]
[422435068,1778946642000,-725.12821339,0.00025397,2]
[422435006,1778946642000,-2000.0,0.0002409,2]
[422435003,1778946642000,-2000.0,0.0002409,2]
[422435008,1778946642000,-2000.0,0.0002409,2]
[422435000,1778946642000,-313.0,0.00024,2]
[422435005,1778946642000,-2000.0,0.0002409,2]
[422435001,1778946642000,-179.0,0.00024,2]
[422435007,1778946642000,-2000.0,0.0002409,2]
[422435010,1778946642000,-2000.0,0.0002409,2]
[422435020,1778946642000,-3840.72596065,0.00024675,2]
[422435011,1778946642000,-2000.0,0.0002409,2]
[422435028,1778946642000,-519.0,0.00025,2]
[422435009,1778946642000,-2000.0,0.0002409,2]
[422435015,1778946642000,-1239.9,0.00024324,2]
[422435014,1778946642000,-11578.0,0.000243,2]
[422435013,1778946642000,-15725.69424152,0.00024217,2]
[422435019,1778946642000,-150.0,0.00024658,2]
[422435017,1778946642000,-3783.38074751,0.00024474,2]
[422435018,1778946642000,-1000.0,0.00024658,2]
[422435016,1778946642000,-1237.80329437,0.00024391,2]
[422435022,1778946642000,-500.0,0.00024761,2]
[422435023,1778946642000,-159.14153599,0.00024866,2]
[422435021,1778946642000,-2312.0,0.0002468,3]
[422435032,1778946642000,-1268.24247352,0.00025,2]
[422435025,1778946642000,-400.0,0.0002497,2]
[422435012,1778946642000,-2000.0,0.0002409,2]
[422435058,1778946642000,-926.0,0.00025183,2]
[422435056,1778946642000,-152.0,0.00025086,2]
[422435060,1778946642000,-625.0,0.00025183,2]
[422435096,1778946642000,-1239.9,0.00026296,2]
[422435098,1778946642000,-725.12821339,0.00026397,2]
[422435108,1778946642000,-150.0,0.00026852,2]
[422435097,1778946642000,-3840.72596065,0.00026366,2]
[422435107,1778946642000,-150.1563238,0.00026852,2]
[422435099,1778946642000,-299.33286419,0.00026455,2]
[422435104,1778946642000,-2312.0,0.00026732,3]
[422435102,1778946642000,-200.0,0.0002673,2]
[422435100,1778946642000,-814.0,0.00026517,2]
[422435105,1778946642000,-150.0,0.00026852,4]
[422435106,1778946642000,-150.0,0.00026852,2]
[422435103,1778946642000,-194.72792766,0.0002673,2]
[422435101,1778946642000,-540.06669992,0.00026712,2]
[422435117,1778946642000,-5863.59398004,0.00026969,2]
[422435114,1778946642000,-150.0,0.00026852,2]
[422435120,1778946642000,-2832.39793651,0.00026969,2]
[422435109,1778946642000,-150.0,0.00026852,2]
[422435121,1778946642000,-152.0,0.00027021,30]
[422435115,1778946642000,-150.0,0.00026852,2]
[422435110,1778946642000,-150.90979649,0.00026852,2]
[422435119,1778946642000,-2797.75145207,0.00026969,2]
[422435111,1778946642000,-150.0,0.00026852,2]
[422435113,1778946642000,-150.0,0.00026852,2]
[422435116,1778946642000,-150.0,0.0002694,4]
[422435118,1778946642000,-164.85598906,0.00026969,2]
[422435057,1778946642000,-1354.0,0.00025183,2]
[422435122,1778946642000,-150.0,0.00027028,4]
[422435087,1778946642000,-485.0,0.00026001,10]
[422435089,1778946642000,-723.0,0.00026001,10]
[422435112,1778946642000,-151.38609086,0.00026852,2]
[422435083,1778946642000,-15725.69424152,0.00025853,2]
[422435085,1778946642000,-2312.0,0.00025962,3]
[422435064,1778946642000,-150.0,0.00025183,2]
[422435061,1778946642000,-150.0,0.00025183,2]
[422435066,1778946642000,-524.40294489,0.00025299,2]
[422435063,1778946642000,-930.0,0.00025183,2]
[422435062,1778946642000,-1270.0,0.00025183,2]
[422435067,1778946642000,-150.0,0.00025342,2]
[422435065,1778946642000,-417.0,0.00025183,2]
[422435070,1778946642000,-152.0,0.00025466,7]
[422435080,1778946642000,-1462.64,0.00025786,2]
[422435071,1778946642000,-152.0,0.00025466,7]
[422435069,1778946642000,-152.0,0.00025415,7]
[422435072,1778946642000,-3462.94,0.00025534,7]
[422435059,1778946642000,-3543.0,0.00025183,2]
[422435078,1778946642000,-5530.0,0.000257,5]
[422435091,1778946642000,-2679.0,0.00026001,10]
[422435095,1778946642000,-187.78006525,0.00026182,2]
[422435093,1778946642000,-206.205718,0.000261,2]
[422435094,1778946642000,-200.0,0.00026182,2]
[422435079,1778946642000,-462.3,0.00025786,2]
[422435082,1778946642000,-4060.23,0.00025786,2]
[422435092,1778946642000,-150.0,0.00026027,2]
[422435077,1778946642000,-814.0,0.00025695,2]
[422435073,1778946642000,-200.0,0.00025634,2]
[422435074,1778946642000,-181.08010149,0.00025634,2]
[422435075,1778946642000,-169.19,0.0002569,2]
[422435076,1778946642000,-169.19,0.0002569,2]
[422435081,1778946642000,-2476.23,0.00025786,2]
[422435164,1778946643000,-150.0,0.00027291,4]
[422435161,1778946643000,-150.0,0.00027278,4]
[422435160,1778946643000,-150.0,0.00027225,4]
[422435169,1778946643000,-150.0,0.00027397,30]
[422435146,1778946643000,-261.82652302,0.00027123,2]
[422435159,1778946643000,-150.0,0.00027203,4]
[422435154,1778946643000,-1506.0,0.00027123,2]
[422435152,1778946643000,-2410.86843543,0.00027123,2]
[422435153,1778946643000,-2109.0,0.00027123,2]
[422435149,1778946643000,-500.0,0.00027123,2]
[422435166,1778946643000,-150.0,0.00027379,4]
[422435163,1778946643000,-201.93286099,0.00027278,2]
[422435171,1778946643000,-483.41880892,0.00027397,7]
[422435158,1778946643000,-150.0,0.00027184,4]
[422435162,1778946643000,-200.0,0.00027278,2]
[422435167,1778946643000,-3462.94,0.00027379,7]
[422435165,1778946643000,-408.845595,0.00027339,2]
[422435177,1778946643000,-835.51,0.00027397,10]
[422435180,1778946643000,-872.0,0.000274,7]
[422435170,1778946643000,-209.0,0.00027397,30]
[422435173,1778946643000,-191.79661858,0.00027397,30]
[422435178,1778946643000,-696.26,0.00027397,10]
[422435174,1778946643000,-1500.0,0.00027397,2]
[422435179,1778946643000,-150.98,0.000274,7]
[422435148,1778946643000,-500.0,0.00027123,2]
[422435172,1778946643000,-191.79751421,0.00027397,2]
[422435168,1778946643000,-150.0,0.00027397,30]
[422435156,1778946643000,-150.0,0.0002715,4]
[422435144,1778946643000,-250.0,0.00027123,2]
[422435151,1778946643000,-193.86641471,0.00027123,2]
[422435175,1778946643000,-300.0,0.00027397,2]
[422435133,1778946643000,-500.0,0.00027123,2]
[422435132,1778946643000,-500.0,0.00027123,2]
[422435131,1778946643000,-500.0,0.00027123,2]
[422435124,1778946643000,-150.0,0.000271,7]
[422435129,1778946643000,-500.0,0.00027123,2]
[422435128,1778946643000,-500.0,0.00027123,2]
[422435123,1778946643000,-209.0,0.000271,7]
[422435125,1778946643000,-162.0,0.000271,7]
[422435126,1778946643000,-412.0,0.000271,7]
[422435130,1778946643000,-500.0,0.00027123,2]
[422435127,1778946643000,-150.0,0.00027115,4]
[422435157,1778946643000,-248.31,0.00027169,2]
[422435134,1778946643000,-150.0,0.00027123,2]
[422435140,1778946643000,-500.0,0.00027123,2]
[422435135,1778946643000,-213.21263462,0.00027123,2]
[422435143,1778946643000,-250.0,0.00027123,2]
[422435145,1778946643000,-531.51017441,0.00027123,2]
[422435137,1778946643000,-500.0,0.00027123,2]
[422435141,1778946643000,-250.0,0.00027123,2]
[422435136,1778946643000,-150.0,0.00027123,2]
[422435142,1778946643000,-500.0,0.00027123,2]
[422435139,1778946643000,-500.0,0.00027123,2]
[422435147,1778946643000,-156.54608074,0.00027123,20]
[422435155,1778946643000,-550.0,0.00027137,2]
[422435150,1778946643000,-500.0,0.00027123,2]
[422435138,1778946643000,-152.1154947,0.00027123,2]
[422435176,1778946643000,-1002.61,0.00027397,10]
[422435235,1778946643000,-150.0,0.00028183,2]
[422435186,1778946643000,-500.0,0.000274,7]
[422435210,1778946643000,-599.60298507,0.00027825,2]
[422435213,1778946643000,-209.40437684,0.00027826,2]
[422435219,1778946643000,-150.0,0.00027971,7]
[422435222,1778946643000,-150.0,0.00028045,4]
[422435227,1778946643000,-4765.98445994,0.00028131,2]
[422435218,1778946643000,-150.0,0.00027905,7]
[422435224,1778946643000,-150.0,0.00028081,7]
[422435220,1778946643000,-150.0,0.00027993,7]
[422435216,1778946643000,-150.0,0.00027847,7]
[422435217,1778946643000,-150.0,0.00027847,7]
[422435228,1778946643000,-150.0,0.00028131,7]
[422435223,1778946643000,-3840.72596065,0.00028058,2]
[422435209,1778946643000,-728.0,0.00027821,5]
[422435226,1778946643000,-4765.98445994,0.00028125,2]
[422435239,1778946643000,-417.0,0.00028183,2]
[422435236,1778946643000,-1270.0,0.00028183,2]
[422435234,1778946643000,-625.0,0.00028183,2]
[422435230,1778946643000,-150.0,0.00028178,7]
[422435229,1778946643000,-150.0,0.00028168,7]
[422435232,1778946643000,-926.0,0.00028183,2]
[422435240,1778946643000,-550.0,0.00028205,3]
[422435238,1778946643000,-150.0,0.00028183,2]
[422435233,1778946643000,-3543.0,0.00028183,2]
[422435231,1778946643000,-1354.0,0.00028183,2]
[422435182,1778946643000,-500.0,0.000274,7]
[422435237,1778946643000,-930.0,0.00028183,2]
[422435225,1778946643000,-200.0,0.000281,2]
[422435212,1778946643000,-200.0,0.00027826,2]
[422435221,1778946643000,-150.0,0.00028045,7]
[422435204,1778946643000,-150.0,0.0002773,7]
[422435183,1778946643000,-500.0,0.000274,7]
[422435191,1778946643000,-150.0,0.00027449,7]
[422435211,1778946643000,-747.8093786,0.00027825,2]
[422435187,1778946643000,-500.0,0.000274,7]
[422435184,1778946643000,-500.0,0.000274,7]
[422435181,1778946643000,-500.0,0.000274,7]
[422435189,1778946643000,-3734.9613926,0.00027432,2]
[422435188,1778946643000,-583.0,0.000274,7]
[422435190,1778946643000,-270.87221922,0.00027435,2]
[422435185,1778946643000,-500.0,0.000274,7]
[422435200,1778946643000,-550.0,0.00027671,2]
[422435194,1778946643000,-15725.69424152,0.00027488,2]
[422435195,1778946643000,-150.0,0.00027515,7]
[422435198,1778946643000,-150.0,0.00027598,7]
[422435192,1778946643000,-150.0,0.00027449,4]
[422435205,1778946643000,-150.0,0.00027747,7]
[422435206,1778946643000,-500.0,0.000278,7]
[422435193,1778946643000,-150.0,0.00027466,7]
[422435208,1778946643000,-905.0,0.00027821,5]
[422435215,1778946643000,-300.4731752,0.00027834,2]
[422435207,1778946643000,-150.0,0.00027817,7]
[422435202,1778946643000,-176.335,0.00027671,17]
[422435214,1778946643000,-3783.38074751,0.0002783,2]
[422435199,1778946643000,-150.0,0.00027642,7]
[422435196,1778946643000,-150.0,0.00027554,7]
[422435201,1778946643000,-1916.264,0.00027671,17]
[422435197,1778946643000,-2312.0,0.00027568,3]
[422435203,1778946643000,-150.0,0.00027705,7]
[422435277,1778946644000,-259.57,0.00028661,7]
[422435284,1778946644000,-216.72,0.00028693,30]
[422435285,1778946644000,-259.57,0.00028693,30]
[422435280,1778946644000,-216.31,0.00028661,7]
[422435282,1778946644000,-781.18,0.00028693,30]
[422435266,1778946644000,-259.57,0.0002863,2]
[422435274,1778946644000,-781.18,0.00028661,7]
[422435273,1778946644000,-350.0,0.00028649,2]
[422435271,1778946644000,-150.0,0.00028642,7]
[422435269,1778946644000,-216.31,0.0002863,2]
[422435283,1778946644000,-1486.25,0.00028693,30]
[422435281,1778946644000,-257.76,0.00028661,7]
[422435279,1778946644000,-1495.36,0.00028661,7]
[422435293,1778946644000,-781.18,0.00028725,2]
[422435278,1778946644000,-779.13,0.00028661,7]
[422435288,1778946644000,-216.31,0.00028693,30]
[422435286,1778946644000,-779.13,0.00028693,30]
[422435300,1778946644000,-257.76,0.00028725,2]
[422435292,1778946644000,-350.0,0.00028718,2]
[422435291,1778946644000,-150.0,0.00028717,7]
[422435298,1778946644000,-1495.36,0.00028725,2]
[422435295,1778946644000,-216.72,0.00028725,2]
[422435290,1778946644000,-150.0,0.00028695,7]
[422435301,1778946644000,-2082.01435369,0.00028731,2]
[422435289,1778946644000,-257.76,0.00028693,30]
[422435296,1778946644000,-259.57,0.00028725,2]
[422435276,1778946644000,-216.72,0.00028661,7]
[422435287,1778946644000,-1495.36,0.00028693,30]
[422435267,1778946644000,-779.13,0.0002863,2]
[422435242,1778946644000,-1239.9,0.00028267,2]
[422435275,1778946644000,-1486.25,0.00028661,7]
[422435294,1778946644000,-1486.25,0.00028725,2]
[422435248,1778946644000,-150.0,0.00028344,7]
[422435250,1778946644000,-217.15233878,0.00028374,2]
[422435243,1778946644000,-191.79661858,0.00028311,30]
[422435244,1778946644000,-4046.7194721,0.0002833,2]
[422435241,1778946644000,-150.0,0.00028256,7]
[422435245,1778946644000,-150.0,0.00028344,7]
[422435247,1778946644000,-150.0,0.00028344,7]
[422435246,1778946644000,-150.0,0.00028344,7]
[422435251,1778946644000,-165.35,0.00028397,2]
[422435249,1778946644000,-200.0,0.00028374,2]
[422435252,1778946644000,-483.41880892,0.00028397,7]
[422435262,1778946644000,-437.4,0.0002863,2]
[422435254,1778946644000,-4765.98445994,0.00028467,2]
[422435261,1778946644000,-450.0,0.0002863,2]
[422435260,1778946644000,-150.0,0.00028607,7]
[422435255,1778946644000,-150.0,0.0002851,7]
[422435263,1778946644000,-781.18,0.0002863,2]
[422435253,1778946644000,-150.0,0.00028432,7]
[422435258,1778946644000,-314.17,0.000286,2]
[422435256,1778946644000,-150.0,0.00028519,7]
[422435257,1778946644000,-150.0,0.00028557,7]
[422435259,1778946644000,-308.0,0.000286,2]
[422435270,1778946644000,-257.76,0.0002863,2]
[422435264,1778946644000,-1486.25,0.0002863,2]
[422435268,1778946644000,-1495.36,0.0002863,2]
[422435265,1778946644000,-216.72,0.0002863,2]
[422435272,1778946644000,-150.0,0.00028642,4]
[422435297,1778946644000,-779.13,0.00028725,2]
[422435357,1778946644000,-257.76,0.00028915,2]
[422435303,1778946644000,-350.0,0.00028753,2]
[422435332,1778946644000,-150.0,0.00028841,7]
[422435334,1778946644000,-1486.25,0.00028852,7]
[422435338,1778946644000,-1495.36,0.00028852,7]
[422435339,1778946644000,-216.31,0.00028852,7]
[422435335,1778946644000,-216.72,0.00028852,7]
[422435336,1778946644000,-259.57,0.00028852,7]
[422435340,1778946644000,-257.76,0.00028852,7]
[422435341,1778946644000,-150.0,0.0002887,7]
[422435343,1778946644000,-1486.25,0.00028883,30]
[422435344,1778946644000,-216.72,0.00028883,30]
[422435342,1778946644000,-781.18,0.00028883,30]
[422435345,1778946644000,-259.57,0.00028883,30]
[422435333,1778946644000,-781.18,0.00028852,7]
[422435348,1778946644000,-216.31,0.00028883,30]
[422435347,1778946644000,-1495.36,0.00028883,30]
[422435349,1778946644000,-257.76,0.00028883,30]
[422435351,1778946644000,-1486.25,0.00028915,2]
[422435350,1778946644000,-781.18,0.00028915,2]
[422435352,1778946644000,-216.72,0.00028915,2]
[422435355,1778946644000,-1495.36,0.00028915,2]
[422435360,1778946644000,-150.0,0.00028941,7]
[422435359,1778946644000,-225.18697532,0.00028922,2]
[422435356,1778946644000,-216.31,0.00028915,2]
[422435361,1778946644000,-781.18,0.00028947,7]
[422435353,1778946644000,-259.57,0.00028915,2]
[422435354,1778946644000,-779.13,0.00028915,2]
[422435346,1778946644000,-779.13,0.00028883,30]
[422435330,1778946644000,-257.76,0.0002882,2]
[422435358,1778946644000,-200.0,0.00028922,2]
[422435331,1778946644000,-150.0,0.00028841,7]
[422435329,1778946644000,-216.31,0.0002882,2]
[422435302,1778946644000,-550.0,0.00028739,3]
[422435308,1778946644000,-779.13,0.00028756,7]
[422435304,1778946644000,-781.18,0.00028756,7]
[422435305,1778946644000,-1486.25,0.00028756,7]
[422435307,1778946644000,-259.57,0.00028756,7]
[422435310,1778946644000,-216.31,0.00028756,7]
[422435306,1778946644000,-216.72,0.00028756,7]
[422435314,1778946644000,-1486.25,0.00028788,30]
[422435313,1778946644000,-781.18,0.00028788,30]
[422435309,1778946644000,-1495.36,0.00028756,7]
[422435311,1778946644000,-257.76,0.00028756,7]
[422435312,1778946644000,-150.0,0.00028783,7]
[422435315,1778946644000,-216.72,0.00028788,30]
[422435299,1778946644000,-216.31,0.00028725,2]
[422435326,1778946644000,-259.57,0.0002882,2]
[422435316,1778946644000,-259.57,0.00028788,30]
[422435337,1778946644000,-779.13,0.00028852,7]
[422435328,1778946644000,-1495.36,0.0002882,2]
[422435327,1778946644000,-779.13,0.0002882,2]
[422435323,1778946644000,-781.18,0.0002882,2]
[422435324,1778946644000,-1486.25,0.0002882,2]
[422435321,1778946644000,-4765.98445994,0.00028797,2]
[422435320,1778946644000,-257.76,0.00028788,30]
[422435319,1778946644000,-216.31,0.00028788,30]
[422435318,1778946644000,-1495.36,0.00028788,30]
[422435322,1778946644000,-631.27,0.000288,7]
[422435317,1778946644000,-779.13,0.00028788,30]
[422435325,1778946644000,-216.72,0.0002882,2]
[422435405,1778946645000,-781.18,0.00029074,30]
[422435403,1778946645000,-257.76,0.00029042,7]
[422435408,1778946645000,-259.57,0.00029074,30]
[422435400,1778946645000,-779.13,0.00029042,7]
[422435393,1778946645000,-202.605723,0.0002901,30]
[422435397,1778946645000,-1486.25,0.00029042,7]
[422435394,1778946645000,-151.95429225,0.0002901,30]
[422435392,1778946645000,-257.76,0.0002901,2]
[422435395,1778946645000,-350.0,0.00029041,2]
[422435396,1778946645000,-781.18,0.00029042,7]
[422435406,1778946645000,-1486.25,0.00029074,30]
[422435402,1778946645000,-216.31,0.00029042,7]
[422435404,1778946645000,-150.0,0.00029046,7]
[422435401,1778946645000,-1495.36,0.00029042,7]
[422435409,1778946645000,-779.13,0.00029074,30]
[422435399,1778946645000,-259.57,0.00029042,7]
[422435391,1778946645000,-216.31,0.0002901,2]
[422435407,1778946645000,-216.72,0.00029074,30]
[422435411,1778946645000,-216.31,0.00029074,30]
[422435413,1778946645000,-150.0,0.0002909,7]
[422435412,1778946645000,-257.76,0.00029074,30]
[422435415,1778946645000,-1200.0,0.00029095,2]
[422435414,1778946645000,-1200.0,0.00029095,2]
[422435417,1778946645000,-781.18,0.00029105,2]
[422435418,1778946645000,-1486.25,0.00029105,2]
[422435410,1778946645000,-1495.36,0.00029074,30]
[422435390,1778946645000,-1495.36,0.0002901,2]
[422435382,1778946645000,-257.76,0.00028979,30]
[422435398,1778946645000,-216.72,0.00029042,7]
[422435420,1778946645000,-259.57,0.00029105,2]
[422435362,1778946645000,-1486.25,0.00028947,7]
[422435364,1778946645000,-259.57,0.00028947,7]
[422435363,1778946645000,-216.72,0.00028947,7]
[422435366,1778946645000,-1495.36,0.00028947,7]
[422435365,1778946645000,-779.13,0.00028947,7]
[422435367,1778946645000,-216.31,0.00028947,7]
[422435368,1778946645000,-257.76,0.00028947,7]
[422435369,1778946645000,-151.95429224,0.00028951,30]
[422435371,1778946645000,-150.0,0.00028958,7]
[422435370,1778946645000,-461.01707129,0.00028952,2]
[422435372,1778946645000,-3000.0,0.00028979,30]
[422435389,1778946645000,-779.13,0.0002901,2]
[422435373,1778946645000,-2200.0,0.00028979,30]
[422435385,1778946645000,-781.18,0.0002901,2]
[422435386,1778946645000,-1486.25,0.0002901,2]
[422435377,1778946645000,-216.72,0.00028979,30]
[422435376,1778946645000,-1486.25,0.00028979,30]
[422435384,1778946645000,-4765.98445994,0.00028997,2]
[422435383,1778946645000,-150.0,0.00028983,7]
[422435379,1778946645000,-779.13,0.00028979,30]
[422435380,1778946645000,-1495.36,0.00028979,30]
[422435381,1778946645000,-216.31,0.00028979,30]
[422435378,1778946645000,-259.57,0.00028979,30]
[422435388,1778946645000,-259.57,0.0002901,2]
[422435387,1778946645000,-216.72,0.0002901,2]
[422435375,1778946645000,-781.18,0.00028979,30]
[422435374,1778946645000,-1800.0,0.00028979,30]
[422435416,1778946645000,-1136.0,0.00029095,2]
[422435419,1778946645000,-216.72,0.00029105,2]
[422435461,1778946645000,-1495.36,0.00029169,30]
[422435462,1778946645000,-216.31,0.00029169,30]
[422435451,1778946645000,-216.31,0.00029137,7]
[422435457,1778946645000,-1486.25,0.00029169,30]
[422435458,1778946645000,-216.72,0.00029169,30]
[422435464,1778946645000,-150.0,0.00029173,7]
[422435465,1778946645000,-4765.98445994,0.00029199,2]
[422435469,1778946645000,-259.57,0.00029201,2]
[422435466,1778946645000,-781.18,0.00029201,2]
[422435471,1778946645000,-1495.36,0.00029201,2]
[422435467,1778946645000,-1486.25,0.00029201,2]
[422435475,1778946645000,-3462.94,0.00029223,7]
[422435460,1778946645000,-779.13,0.00029169,30]
[422435468,1778946645000,-216.72,0.00029201,2]
[422435474,1778946645000,-150.0,0.00029221,7]
[422435472,1778946645000,-216.31,0.00029201,2]
[422435477,1778946645000,-150.0,0.00029224,30]
[422435476,1778946645000,-191.79661858,0.00029224,30]
[422435478,1778946645000,-150.0,0.00029224,30]
[422435479,1778946645000,-164.0,0.00029224,30]
[422435480,1778946645000,-257.3,0.00029232,7]
[422435481,1778946645000,-781.29,0.00029232,7]
[422435482,1778946645000,-1486.28,0.00029232,7]
[422435484,1778946645000,-259.63,0.00029232,7]
[422435483,1778946645000,-216.89,0.00029232,7]
[422435421,1778946645000,-779.13,0.00029105,2]
[422435473,1778946645000,-257.76,0.00029201,2]
[422435453,1778946645000,-257.76,0.00029137,7]
[422435470,1778946645000,-779.13,0.00029201,2]
[422435463,1778946645000,-257.76,0.00029169,30]
[422435422,1778946645000,-1495.36,0.00029105,2]
[422435455,1778946645000,-781.18,0.00029169,30]
[422435426,1778946645000,-157.824606,0.0002913,7]
[422435431,1778946645000,-191.17238003,0.00029131,7]
[422435433,1778946645000,-219.73769285,0.00029131,7]
[422435427,1778946645000,-182.45966178,0.0002913,7]
[422435429,1778946645000,-177.25723462,0.0002913,7]
[422435425,1778946645000,-15725.69424152,0.00029124,2]
[422435428,1778946645000,-215.03918697,0.0002913,7]
[422435432,1778946645000,-190.61242769,0.00029131,7]
[422435424,1778946645000,-257.76,0.00029105,2]
[422435430,1778946645000,-200.93607016,0.00029131,2]
[422435435,1778946645000,-154.09659732,0.00029131,7]
[422435446,1778946645000,-216.72,0.00029137,7]
[422435423,1778946645000,-216.31,0.00029105,2]
[422435459,1778946645000,-259.57,0.00029169,30]